[Event "Moscow-ch Men 2020"]
[Site "Moscow"]
[Date "2020.09.19"]
[Round "7.4"]
[White "Anfinogenov, Artem"]
[Black "Rostovtsev, Dmitry"]
[Result "0-1"]
[ECO "E91"]
[WhiteElo "2054"]
[BlackElo "1737"]
[Annotator "NA"]
[PlyCount "132"]
[EventDate "2020.09.15"]
[EventType "swiss"]
[EventCountry "RUS"]
[SourceTitle "playchess.com"]
[Source "ChessBase"]
[SourceQuality "1"]
[TimeControl "5400+30"]

1. d4 {[%emt 0:00:00]} Nf6 {[%emt 0:06:43]} 2. c4 {[%emt 0:00:08]} g6 {[%emt 0:00:05]} 3. Nc3 {[%emt 0:00:07]} Bg7 {[%emt 0:00:03]} 4. e4 {[%emt 0:00:10]} d6 {[%emt 0:00:04]} 5. Be2 {[%emt 0:00:14]} O-O {[%emt 0:00:09]} 6. Bg5 {[%emt 0:00:08]} Na6 {[%emt 0:00:18]} 7. Qd2 {[%emt 0:02:01]} c6 {[%emt 0:04:20]} 8. Nf3 {[%emt 0:01:50]} Nc7 {[%emt 0:04:13]} 9. O-O {[%emt 0:04:22]} d5 {[%emt 0:01:39] E91: King's Indian: Classical: 6 Be2, unusual replies including 6...c5 and 6...Bg4.} 10. cxd5 {[%emt 0:03:49]} cxd5 {[%emt 0:00:05]} 11. e5 {[%emt 0:01:05]} Ne4 {[%emt 0:00:26]} 12. Nxe4 {[%emt 0:01:10]} (12. Qe3 $11) 12... dxe4 {[%emt 0:00:12]} 13. Ne1 {[%emt 0:00:06]} f6 {[%emt 0:04:02]} 14. exf6 {[%emt 0:03:15]} exf6 {[%emt 0:00:15]} 15. Be3 {[%emt 0:01:43] [#]} Be6 $146 {[%emt 0:04:04]} ({Predecessor:} 15... Nd5 16. Nc2 Be6 17. Bh6 Bxh6 18. Qxh6 Qc7 19. Qd2 Rac8 20. Ne3 Qd6 21. Nxd5 Bxd5 22. b3 Rc7 23. Rac1 Rfc8 24. Rxc7 Rxc7 25. Rc1 {½-½ (25) Bouma,J (1678)-Richardson,J (1688) Chessfriend.com 2004}) 16. f3 {[%emt 0:02:52]} exf3 {[%emt 0:01:22]} 17. Nxf3 {[%emt 0:00:47]} Nd5 {[%emt 0:02:29]} 18. Bh6 {[%emt 0:03:33]} Qd7 {[%emt 0:02:42]} 19. Bxg7 {[%emt 0:01:59]} Kxg7 {[%emt 0:00:21]} 20. Rfe1 {[%emt 0:01:54]} Rfd8 {[%emt 0:02:25]} 21. Bc4 {[%emt 0:02:46]} Rac8 {[%emt 0:00:43]} 22. Rac1 {[%emt 0:00:42]} Bf7 {[%emt 0:01:32]} 23. a3 {[%emt 0:04:32]} Rc7 {[%emt 0:07:24]} 24. Bb3 {[%emt 0:08:31]} Rdc8 {[%emt 0:00:46]} 25. Rxc7 {[%emt 0:10:52]} Qxc7 {[%emt 0:00:24]} 26. Bxd5 {[%emt 0:05:50]} Bxd5 {[%emt 0:01:22]} 27. Qb4 {[%emt 0:00:10]} Kg8 {[%emt 0:03:13]} 28. Re7 $17 {[%emt 0:14:22]} Qf4 {[%emt 0:11:15]} 29. Qb5 {[%emt 0:03:33]} Bxf3 {[%emt 0:01:13]} 30. Re8+ {[%emt 0:00:39]} Rxe8 {[%emt 0:00:04]} 31. Qxe8+ {[%emt 0:00:06]} Kg7 {[%emt 0:00:04]} 32. Qd7+ {[%emt 0:00:26]} Kh6 {[%emt 0:00:20]} 33. gxf3 {[%emt 0:00:13]} Qxf3 {[%emt 0:00:53]} 34. d5 {[%emt 0:00:55]} Qe3+ {[%emt 0:03:05]} 35. Kg2 {[%emt 0:03:07]} Qd2+ {[%emt 0:10:17]} 36. Kf3 {[%emt 0:01:30]} Qd3+ {[%emt 0:01:37]} 37. Kf2 {[%emt 0:00:52]} Qc2+ {[%emt 0:01:17]} 38. Ke3 {[%emt 0:00:29]} Qb3+ {[%emt 0:02:40]} 39. Kf2 {[%emt 0:03:43]} Qxb2+ {[%emt 0:00:08]} 40. Kg1 {[%emt 0:00:25]} Qc1+ {[%emt 0:03:23]} 41. Kf2 {[%emt 0:00:35]} Qd2+ {[%emt 0:00:56]} 42. Kg1 {[%emt 0:03:32]} Qe3+ {[%emt 0:01:52]} 43. Kg2 {[%emt 0:00:43]} Qe4+ {[%emt 0:00:29]} 44. Kf2 {[%emt 0:00:35]} Qf4+ {[%emt 0:00:53]} 45. Kg2 {[%emt 0:00:40]} Qd2+ {[%emt 0:00:24]} 46. Kg1 {[%emt 0:00:13]} Qe1+ {[%emt 0:00:21]} 47. Kg2 {[%emt 0:00:04]} Qe2+ {[%emt 0:00:04]} 48. Kg1 {[%emt 0:00:10]} f5 {[%emt 0:00:05]} 49. d6 {[%emt 0:00:46]} Qd1+ {[%emt 0:02:35]} 50. Kf2 {[%emt 0:00:48]} Qd4+ {[%emt 0:01:01]} 51. Kf3 {[%emt 0:01:20]} Qd3+ {[%emt 0:01:22]} 52. Kf2 {[%emt 0:00:25]} f4 {[%emt 0:00:13]} 53. Qe6 {[%emt 0:03:10]} Qd2+ {[%emt 0:02:57]} 54. Kf3 {[%emt 0:00:59]} Qxh2 {[%emt 0:00:53]} 55. d7 {[%emt 0:00:43]} Qg3+ {[%emt 0:00:26]} 56. Ke4 {[%emt 0:00:39]} Qe3+ {[%emt 0:00:06]} 57. Kd5 {[%emt 0:00:07]} Qd3+ {[%emt 0:00:22]} 58. Ke5 {[%emt 0:04:06]} f3 {[%emt 0:00:23]} 59. Qh3+ {[%emt 0:00:36]} Kg7 {[%emt 0:00:35]} 60. Ke6 {[%emt 0:00:59]} Qe4+ {[%emt 0:01:05]} 61. Kd6 {[%emt 0:00:14]} Qc6+ {[%emt 0:00:09]} 62. Ke5 {[%emt 0:00:23]} Qf6+ {[%emt 0:00:13]} 63. Kd5 {[%emt 0:01:31]} f2 {[%emt 0:00:14]} 64. Kc5 {[%emt 0:02:03]} f1=Q {[%emt 0:16:45]} 65. Qxf1 {[%emt 0:00:15]} Qxf1 {[%emt 0:00:00]} 66. d8=Q {[%emt 0:00:05]} Qf8+ {[%emt 0:01:00]} 0-1

[Event "Moscow-ch Men 2020"]
[Site "Moscow"]
[Date "2020.09.19"]
[Round "7.5"]
[White "Maslovskiy, Vladimir"]
[Black "Fedosov, Alexander"]
[Result "1-0"]
[ECO "B13"]
[WhiteElo "1767"]
[BlackElo "1324"]
[Annotator "NA"]
[PlyCount "95"]
[EventDate "2020.09.15"]
[EventType "swiss"]
[EventCountry "RUS"]
[SourceTitle "playchess.com"]
[Source "ChessBase"]
[SourceQuality "1"]
[TimeControl "5400+30"]

1. e4 {[%emt 0:00:00]} c6 {[%emt 0:03:38]} 2. d4 {[%emt 0:00:00]} d5 {[%emt 0:00:11]} 3. exd5 {[%emt 0:00:00]} cxd5 {[%emt 0:00:06]} 4. Bd3 {[%emt 0:00:00]} Nc6 {[%emt 0:01:00]} 5. c3 {[%emt 0:00:58]} Nf6 {[%emt 0:02:33]} 6. h3 {[%emt 0:00:05]} g6 {[%emt 0:01:33]} 7. Nf3 {[%emt 0:00:13]} Bf5 {[%emt 0:00:24]} 8. O-O {[%emt 0:08:11]} e6 {[%emt 0:02:47]} 9. Qe2 {[%emt 0:01:14]} Bd6 {[%emt 0:01:07]} 10. Re1 {[%emt 0:03:23]} a6 {[%emt 0:05:01]} 11. Ne5 {[%emt 0:02:26]} Bxe5 {[%emt 0:00:47]} 12. dxe5 {[%emt 0:00:07]} Nd7 {[%emt 0:00:03]} 13. f4 {[%emt 0:02:43]} Nc5 {[%emt 0:03:43]} 14. Bxf5 {[%emt 0:00:10]} gxf5 {[%emt 0:00:12]} 15. Be3 {[%emt 0:00:38]} Ne4 {[%emt 0:00:37]} 16. Nd2 {[%emt 0:00:31]} Qh4 {[%emt 0:10:38]} 17. Nxe4 {[%emt 0:00:42]} fxe4 {[%emt 0:01:27]} 18. Qg4 {[%emt 0:20:44]} Qxg4 {[%emt 0:02:27]} 19. hxg4 {[%emt 0:00:03]} h5 {[%emt 0:00:50]} 20. gxh5 {[%emt 0:00:53]} Rxh5 {[%emt 0:00:10]} 21. Kf2 {[%emt 0:00:05]} Kd7 {[%emt 0:00:14]} 22. Rh1 {[%emt 0:00:21]} Rah8 {[%emt 0:00:07]} 23. Rxh5 {[%emt 0:00:51]} Rxh5 {[%emt 0:00:06]} 24. Bc5 {[%emt 0:00:21]} Kc7 {[%emt 0:01:42]} 25. Rg1 {[%emt 0:00:34]} Rh4 {[%emt 0:00:53]} 26. g4 {[%emt 0:00:24]} Rh2+ {[%emt 0:00:52]} 27. Rg2 {[%emt 0:00:03]} Rh3 {[%emt 0:00:05]} 28. Rg3 {[%emt 0:02:11]} Rh2+ {[%emt 0:00:08]} 29. Rg2 {[%emt 0:00:16]} Rh3 {[%emt 0:00:06]} 30. Ke2 {[%emt 0:20:39]} Rf3 {[%emt 0:01:45]} 31. Be3 {[%emt 0:01:10]} Rh3 {[%emt 0:02:31]} 32. Bg1 {[%emt 0:14:39]} Ne7 {[%emt 0:03:11]} 33. Bh2 {[%emt 0:00:16]} Ng6 {[%emt 0:01:41]} 34. f5 {[%emt 0:01:05]} Nh4 {[%emt 0:01:30]} 35. Rf2 {[%emt 0:00:10]} Rf3 {[%emt 0:01:26]} 36. Rxf3 {[%emt 0:02:49]} Nxf3 {[%emt 0:01:03]} 37. Bf4 {[%emt 0:00:20]} Kd7 {[%emt 0:03:01]} 38. f6 {[%emt 0:00:57]} Kc6 {[%emt 0:01:03]} 39. Bg3 {[%emt 0:02:31]} d4 {[%emt 0:00:48]} 40. cxd4 {[%emt 0:00:08]} Nxd4+ {[%emt 0:00:05]} 41. Ke3 {[%emt 0:00:13]} Kd5 {[%emt 0:00:03]} 42. g5 {[%emt 0:02:20]} Nf5+ {[%emt 0:07:02]} 43. Kf4 {[%emt 0:00:23]} Nxg3 {[%emt 0:01:11]} 44. g6 {[%emt 0:01:06]} Nh5+ {[%emt 0:06:38]} 45. Ke3 {[%emt 0:00:32]} Kxe5 {[%emt 0:01:48]} 46. gxf7 {[%emt 0:00:07]} Nxf6 {[%emt 0:00:08]} 47. f8=Q {[%emt 0:00:06]} Nd5+ {[%emt 0:00:14]} 48. Ke2 {[%emt 0:00:27]} 1-0

[Event "Moscow-ch Men 2020"]
[Site "Moscow"]
[Date "2020.09.19"]
[Round "7.6"]
[White "Tunik, Sergey"]
[Black "Bukreev, Stanislav"]
[Result "1-0"]
[ECO "A46"]
[WhiteElo "2160"]
[BlackElo "1468"]
[Annotator "ChessBase"]
[PlyCount "69"]
[EventDate "2020.09.15"]
[EventType "swiss"]
[EventCountry "RUS"]
[SourceTitle "playchess.com"]
[Source "ChessBase"]
[SourceQuality "1"]
[TimeControl "5400+30"]

1. d4 {[%emt 0:00:00]} Nf6 {[%emt 0:00:00]} 2. Nf3 {[%emt 0:00:00]} c5 {[%emt 0:00:00]} 3. c3 {[%emt 0:00:00]} cxd4 {[%emt 0:00:04]} 4. cxd4 {[%emt 0:00:01]} g6 {[%emt 0:00:04]} 5. g3 {[%emt 0:00:14]} Bg7 {[%emt 0:00:21]} 6. Bg2 {[%emt 0:00:12]} O-O {[%emt 0:00:08]} 7. O-O {[%emt 0:00:05]} d6 {[%emt 0:00:24]} 8. Nc3 {[%emt 0:04:07]} Bg4 {[%emt 0:02:29]} 9. Be3 {[%emt 0:08:58]} Nc6 {[%emt 0:01:53]} 10. h3 {[%emt 0:01:34]} Bf5 {[%emt 0:02:47]} 11. g4 {[%emt 0:05:09]} Be4 {[%emt 0:02:20]} 12. g5 {[%emt 0:04:45]} Bxf3 {[%emt 0:05:30]} 13. gxf6 {[%emt 0:00:21]} Bxe2 {[%emt 0:00:05]} 14. fxe7 {[%emt 0:01:51]} Qxe7 {[%emt 0:02:25]} 15. Nxe2 {[%emt 0:05:14]} Rac8 {[%emt 0:02:44]} 16. Qd2 {[%emt 0:00:33]} Rfe8 {[%emt 0:05:30]} 17. Rfe1 {[%emt 0:01:06]} a5 {[%emt 0:04:43]} 18. Rac1 {[%emt 0:00:55]} a4 {[%emt 0:01:12]} 19. Rc3 {[%emt 0:03:46]} Nb4 {[%emt 0:00:57]} 20. Rxc8 {[%emt 0:00:17]} Rxc8 {[%emt 0:00:56]} 21. Qxb4 {[%emt 0:00:10]} h5 {[%emt 0:03:05]} 22. Rc1 {[%emt 0:01:22]} Rxc1+ {[%emt 0:01:59]} 23. Nxc1 {[%emt 0:00:05]} a3 {[%emt 0:00:41]} 24. Qxa3 {[%emt 0:00:42]} Qc7 {[%emt 0:02:53]} 25. Qc3 {[%emt 0:00:10]} Qb6 {[%emt 0:01:23]} 26. Qc8+ {[%emt 0:01:11]} Kh7 {[%emt 0:02:57]} 27. Qxb7 {[%emt 0:00:10]} Qa5 {[%emt 0:00:10]} 28. Qxf7 {[%emt 0:00:08]} Qb6 {[%emt 0:01:23]} 29. Nd3 {[%emt 0:00:19]} d5 {[%emt 0:00:19]} 30. Bxd5 {[%emt 0:00:09]} Qd8 {[%emt 0:00:33]} 31. Ne5 {[%emt 0:00:08]} Kh8 {[%emt 0:00:34]} 32. Nxg6+ {[%emt 0:00:08]} Kh7 {[%emt 0:00:21]} 33. Ne7 {[%emt 0:00:17]} Qxd5 {[%emt 0:00:57]} 34. Nxd5 {[%emt 0:00:12]} h4 {[%emt 0:00:14]} 35. Nf6+ {[%emt 0:00:06]} 1-0

[Event "Moscow-ch Men 2020"]
[Site "Moscow"]
[Date "2020.09.19"]
[Round "7.7"]
[White "Usov, Aleksandr E."]
[Black "Uskov, Artem"]
[Result "1-0"]
[ECO "B52"]
[WhiteElo "2069"]
[BlackElo "2164"]
[Annotator "ChessBase"]
[PlyCount "125"]
[EventDate "2020.09.15"]
[EventType "swiss"]
[EventCountry "RUS"]
[SourceTitle "playchess.com"]
[Source "ChessBase"]
[SourceQuality "1"]
[TimeControl "5400+30"]

1. e4 {[%emt 0:00:00]} c5 {[%emt 0:00:00]} 2. Nf3 {[%emt 0:00:00]} d6 {[%emt 0:00:00]} 3. Bb5+ {[%emt 0:00:00]} Bd7 {[%emt 0:00:12]} 4. Bxd7+ {[%emt 0:00:00]} Qxd7 {[%emt 0:00:06]} 5. c4 {[%emt 0:00:00]} Nc6 {[%emt 0:00:42]} 6. Nc3 {[%emt 0:00:00]} Nf6 {[%emt 0:01:26]} 7. d4 {[%emt 0:00:00]} cxd4 {[%emt 0:00:11]} 8. Nxd4 {[%emt 0:00:01]} g6 {[%emt 0:00:26]} 9. f3 {[%emt 0:00:12]} Nxd4 {[%emt 0:00:08]} 10. Qxd4 {[%emt 0:00:08]} Bg7 {[%emt 0:00:10]} 11. Qd3 {[%emt 0:00:19]} O-O {[%emt 0:00:35]} 12. Be3 {[%emt 0:00:18]} Rfc8 {[%emt 0:00:57]} 13. O-O {[%emt 0:00:19]} Qd8 {[%emt 0:01:11]} 14. b3 {[%emt 0:01:00]} Nd7 {[%emt 0:00:48]} 15. Rac1 {[%emt 0:00:32]} b6 {[%emt 0:01:18]} 16. Rfd1 {[%emt 0:00:31]} Ne5 {[%emt 0:01:49]} 17. Qe2 {[%emt 0:03:40]} Nc6 {[%emt 0:00:32]} 18. f4 {[%emt 0:03:27]} Qf8 {[%emt 0:06:38]} 19. Qf2 {[%emt 0:00:54]} Rd8 {[%emt 0:01:17]} 20. Nb5 {[%emt 0:01:04]} Rac8 {[%emt 0:01:10]} 21. Nd4 {[%emt 0:00:51]} Rd7 {[%emt 0:02:49]} 22. Rc2 {[%emt 0:03:01]} Bxd4 {[%emt 0:07:28]} 23. Bxd4 {[%emt 0:00:01]} f5 {[%emt 0:00:06]} 24. Ba1 {[%emt 0:06:29]} fxe4 {[%emt 0:00:36]} 25. Qe3 {[%emt 0:00:04]} Qf5 {[%emt 0:05:45]} 26. Rf2 {[%emt 0:32:37]} d5 {[%emt 0:10:34]} 27. cxd5 {[%emt 0:00:16]} Rxd5 {[%emt 0:00:08]} 28. Rxd5 {[%emt 0:25:53]} Qxd5 {[%emt 0:03:41]} 29. Rd2 {[%emt 0:00:25]} Qc5 {[%emt 0:02:09]} 30. Qxc5 {[%emt 0:00:08]} bxc5 {[%emt 0:00:05]} 31. Kf2 {[%emt 0:00:15]} Kf7 {[%emt 0:09:53]} 32. Ke3 {[%emt 0:01:42]} Ke6 {[%emt 0:01:40]} 33. Kxe4 {[%emt 0:00:05]} Na5 {[%emt 0:00:03]} 34. g4 {[%emt 0:01:05]} c4 {[%emt 0:03:51]} 35. Rc2 {[%emt 0:04:36]} a6 {[%emt 0:08:19]} 36. Be5 {[%emt 0:02:00]} Rc6 {[%emt 0:02:01]} 37. f5+ {[%emt 0:00:51]} gxf5+ {[%emt 0:00:05]} 38. gxf5+ {[%emt 0:00:03]} Kd7 {[%emt 0:00:10]} 39. Rd2+ {[%emt 0:01:15]} Ke8 {[%emt 0:01:44]} 40. Bc3 {[%emt 0:11:24]} Nb7 {[%emt 0:00:23]} 41. b4 {[%emt 0:00:11]} Nd6+ {[%emt 0:00:28]} 42. Ke5 {[%emt 0:01:52]} Rb6 {[%emt 0:00:16]} 43. a4 {[%emt 0:00:07]} Kd7 {[%emt 0:00:31]} 44. f6 {[%emt 0:02:29]} exf6+ {[%emt 0:07:25]} 45. Kxf6 {[%emt 0:00:01]} Kc6 {[%emt 0:07:57]} 46. Ke5 {[%emt 0:00:11]} Kc7 {[%emt 0:01:20]} 47. Kd5 {[%emt 0:00:51]} Rc6 {[%emt 0:00:43]} 48. Rf2 {[%emt 0:01:47]} Kd7 {[%emt 0:05:37]} 49. Rf6 {[%emt 0:00:05]} h5 {[%emt 0:00:27]} 50. Rh6 {[%emt 0:00:40]} Nf5 {[%emt 0:00:09]} 51. Rh7+ {[%emt 0:00:01]} Ne7+ {[%emt 0:09:31]} 52. Rxe7+ {[%emt 0:00:06]} Kxe7 {[%emt 0:00:00]} 53. Kxc6 {[%emt 0:00:01]} h4 {[%emt 0:00:00]} 54. b5 {[%emt 0:00:17]} axb5 {[%emt 0:00:00]} 55. axb5 {[%emt 0:00:33]} Ke6 {[%emt 0:00:00]} 56. b6 {[%emt 0:00:04]} h3 {[%emt 0:00:00]} 57. b7 {[%emt 0:00:03]} Kf5 {[%emt 0:00:00]} 58. b8=Q {[%emt 0:04:15]} Ke4 {[%emt 0:00:00]} 59. Qg3 {[%emt 0:00:00]} Kf5 {[%emt 0:00:00]} 60. Qh4 {[%emt 0:00:00]} Kg6 {[%emt 0:00:00]} 61. Qf6+ {[%emt 0:00:00]} Kh5 {[%emt 0:00:00]} 62. Bd2 {[%emt 0:00:00]} Kg4 {[%emt 0:00:00]} 63. Qf4+ {[%emt 0:00:00]} 1-0

[Event "Moscow-ch Men 2020"]
[Site "Moscow"]
[Date "2020.09.21"]
[Round "9.6"]
[White "Fedosov, Alexander"]
[Black "Rostovtsev, Dmitry"]
[Result "1/2-1/2"]
[ECO "D79"]
[WhiteElo "1324"]
[BlackElo "1737"]
[Annotator "NA RC"]
[PlyCount "136"]
[EventDate "2020.09.15"]
[EventType "swiss"]
[EventCountry "RUS"]
[SourceTitle "playchess.com"]
[Source "ChessBase"]
[SourceQuality "1"]
[TimeControl "5400+30"]

1. d4 {[%emt 0:04:56]} Nf6 {[%emt 0:00:00]} 2. Nf3 {[%emt 0:00:38]} g6 {[%emt 0:00:00]} 3. c4 {[%emt 0:00:13]} Bg7 {[%emt 0:00:00]} 4. g3 {[%emt 0:00:53]} O-O {[%emt 0:00:15]} 5. Bg2 {[%emt 0:00:10]} c6 {[%emt 0:01:32]} 6. O-O {[%emt 0:01:00]} d5 {[%emt 0:00:10]} 7. cxd5 {[%emt 0:00:07]} cxd5 {[%emt 0:00:05]} 8. Nc3 {[%emt 0:00:19]} Bf5 {[%emt 0:02:27]} 9. Ne5 {[%emt 0:04:02]} Nc6 {[%emt 0:00:56]} 10. Nxc6 {[%emt 0:07:11]} bxc6 {[%emt 0:00:05]} 11. Bf4 {[%emt 0:02:59]} Ne8 {[%emt 0:04:11]} 12. Rc1 {[%emt 0:04:03]} Qb6 {[%emt 0:01:50]} 13. Na4 {[%emt 0:02:24]} Qxd4 {[%emt 0:00:17]} 14. Rxc6 {[%emt 0:02:53]} Bd7 {[%emt 0:00:46]} 15. Qxd4 {[%emt 0:03:00]} Bxd4 {[%emt 0:00:03]} 16. Ra6 {[%emt 0:00:01]} e6 {[%emt 0:09:53]} 17. Rd1 {[%emt 0:01:37]} Bg7 {[%emt 0:06:05]} 18. Nb6 {[%emt 0:04:48]} Nc7 {[%emt 0:00:09]} 19. Nxd7 {[%emt 0:01:55]} Nxa6 {[%emt 0:00:03]} 20. Nxf8 {[%emt 0:00:03]} Kxf8 {[%emt 0:00:12]} 21. Bd6+ {[%emt 0:00:32]} Ke8 {[%emt 0:00:17]} 22. e4 {[%emt 0:00:17]} Rd8 {[%emt 0:01:10]} 23. e5 {[%emt 0:01:40]} Bf8 {[%emt 0:01:06]} 24. Bxf8 {[%emt 0:02:53]} Kxf8 {[%emt 0:00:04]} 25. Bf1 {[%emt 0:00:09]} Nb4 {[%emt 0:02:40]} 26. a3 {[%emt 0:00:24]} Nc6 {[%emt 0:01:16]} 27. f4 {[%emt 0:00:20]} Rb8 {[%emt 0:04:05]} 28. b4 {[%emt 0:02:51]} Ke7 {[%emt 0:04:55]} 29. Kf2 {[%emt 0:00:51]} Kd7 {[%emt 0:01:26]} 30. Ke3 {[%emt 0:03:41]} g5 {[%emt 0:01:03]} 31. Rc1 {[%emt 0:08:09]} gxf4+ {[%emt 0:00:20]} 32. gxf4 {[%emt 0:00:38]} a5 {[%emt 0:09:06]} 33. b5 {[%emt 0:00:29]} Na7 {[%emt 0:00:22]} 34. a4 {[%emt 0:00:13]} Nc8 {[%emt 0:01:10]} 35. f5 {[%emt 0:02:00]} Ne7 {[%emt 0:02:08]} 36. Bh3 {[%emt 0:00:52]} exf5 {[%emt 0:06:05]} 37. Kf4 {[%emt 0:01:23]} Rg8 {[%emt 0:04:32]} 38. Bxf5+ {[%emt 0:04:36]} Nxf5 {[%emt 0:00:06]} 39. Kxf5 {[%emt 0:00:04]} Rg2 {[%emt 0:00:17]} 40. b6 {[%emt 0:01:24]} Rf2+ {[%emt 0:03:38]} 41. Kg5 {[%emt 0:00:09]} Rb2 {[%emt 0:14:31]} 42. Rc5 {[%emt 0:03:43]} Rxb6 {[%emt 0:02:53]} 43. Rxd5+ {[%emt 0:00:29]} Ke6 {[%emt 0:00:46]} 44. Rxa5 {[%emt 0:00:06]} Rb2 {[%emt 0:01:54]} 45. h4 {[%emt 0:00:45]} Rg2+ {[%emt 0:00:55]} 46. Kf4 {[%emt 0:00:12]} Rf2+ {[%emt 0:00:11]} 47. Kg3 {[%emt 0:01:44]} Ra2 {[%emt 0:00:10]} 48. Kg4 {[%emt 0:02:14]} Rg2+ {[%emt 0:00:09]} 49. Kh5 {[%emt 0:00:30]} Rh2 {[%emt 0:00:01]} 50. Rb5 {[%emt 0:00:39]} Ra2 {[%emt 0:01:09]} 51. a5 {[%emt 0:00:08]} Ra4 {[%emt 0:02:56]} 52. Kg5 {[%emt 0:00:18]} h6+ {[%emt 0:00:25]} 53. Kh5 {[%emt 0:01:03]} Kf5 {[%emt 0:00:29]} 54. Rb7 {[%emt 0:01:21]} Kxe5 {[%emt 0:00:42]} 55. Rxf7 {[%emt 0:00:08]} Rxa5 {[%emt 0:00:20]} 56. Kxh6 {[%emt 0:00:09]} Ke6 {[%emt 0:00:14]} 57. Rf1 {[%emt 0:00:19]} Ra2 {[%emt 0:00:08]} 58. h5 {[%emt 0:00:08]} Rg2 {[%emt 0:00:08]} 59. Kh7 {[%emt 0:00:08]} Ke7 {[%emt 0:00:05]} 60. h6 {[%emt 0:00:30]} Rg3 {[%emt 0:00:08]} 61. Kh8 {[%emt 0:00:10]} Rg6 {[%emt 0:00:18]} 62. h7 {[%emt 0:00:13]} Rg2 {[%emt 0:00:03]} 63. Ra1 {[%emt 0:00:20]} Kf8 {[%emt 0:00:05]} 64. Ra8+ {[%emt 0:00:06]} Kf7 {[%emt 0:00:06]} 65. Rg8 {[%emt 0:00:06]} Rb2 {[%emt 0:00:09]} 66. Rg7+ {[%emt 0:00:08]} Kf8 {[%emt 0:00:22]} 67. Rg3 {[%emt 0:00:31]} Rf2 {[%emt 0:00:05]} 68. Rf3+ {[%emt 0:01:56]} Rxf3 {[%emt 0:00:03]} 1/2-1/2

[Event "Moscow-ch Men 2020"]
[Site "Moscow"]
[Date "2020.09.21"]
[Round "9.7"]
[White "Bukreev, Stanislav"]
[Black "Maslovskiy, Vladimir"]
[Result "0-1"]
[ECO "D36"]
[WhiteElo "1468"]
[BlackElo "1767"]
[Annotator "NA RC"]
[PlyCount "107"]
[EventDate "2020.09.15"]
[EventType "swiss"]
[EventCountry "RUS"]
[SourceTitle "playchess.com"]
[Source "ChessBase"]
[SourceQuality "1"]
[TimeControl "5400+30"]

1. d4 {[%emt 0:00:00]} d5 {[%emt 0:00:00]} 2. c4 {[%emt 0:00:00]} e6 {[%emt 0:00:00]} 3. Nc3 {[%emt 0:00:00]} Nf6 {[%emt 0:00:00]} 4. Bg5 {[%emt 0:00:00]} Be7 {[%emt 0:00:00]} 5. cxd5 {[%emt 0:00:00]} exd5 {[%emt 0:00:00]} 6. e3 {[%emt 0:00:06]} c6 {[%emt 0:00:00]} 7. Bd3 {[%emt 0:00:04]} Nbd7 {[%emt 0:00:06]} 8. Qc2 {[%emt 0:00:06]} O-O {[%emt 0:00:09]} 9. Nf3 {[%emt 0:00:30]} Re8 {[%emt 0:00:06]} 10. O-O {[%emt 0:00:33]} Nf8 {[%emt 0:00:07]} 11. Rab1 {[%emt 0:00:28]} g6 {[%emt 0:00:11]} 12. b4 {[%emt 0:03:14]} a6 {[%emt 0:04:33]} 13. a4 {[%emt 0:00:49]} Ne6 {[%emt 0:05:08]} 14. Bxf6 {[%emt 0:05:09]} Bxf6 {[%emt 0:00:10]} 15. b5 {[%emt 0:00:31]} axb5 {[%emt 0:30:04]} 16. axb5 {[%emt 0:00:22]} c5 {[%emt 0:00:11]} 17. Rfe1 {[%emt 0:21:37]} cxd4 {[%emt 0:11:13]} 18. exd4 {[%emt 0:00:30]} Nf4 {[%emt 0:01:14]} 19. Rxe8+ {[%emt 0:00:26]} Qxe8 {[%emt 0:00:05]} 20. Re1 {[%emt 0:00:26]} Qd8 {[%emt 0:00:09]} 21. Qd2 {[%emt 0:02:07]} Nxd3 {[%emt 0:00:53]} 22. Qxd3 {[%emt 0:00:39]} Be6 {[%emt 0:00:16]} 23. Ne2 {[%emt 0:00:55]} Qd6 {[%emt 0:01:02]} 24. Rc1 {[%emt 0:00:29]} Rc8 {[%emt 0:02:19]} 25. Rxc8+ {[%emt 0:01:05]} Bxc8 {[%emt 0:00:13]} 26. h3 {[%emt 0:00:19]} Qb4 {[%emt 0:04:01]} 27. Nf4 {[%emt 0:05:43]} Bf5 {[%emt 0:06:45]} 28. Nxd5 {[%emt 0:04:19]} Bxd3 {[%emt 0:00:13]} 29. Nxb4 {[%emt 0:00:08]} Bxb5 {[%emt 0:00:03]} 30. Nd5 {[%emt 0:01:44]} Bg7 {[%emt 0:04:19]} 31. Nb6 {[%emt 0:01:12]} Kf8 {[%emt 0:05:40]} 32. Kh2 {[%emt 0:00:43]} Ke7 {[%emt 0:01:09]} 33. Nd5+ {[%emt 0:01:14]} Kd6 {[%emt 0:01:01]} 34. Ne3 {[%emt 0:00:23]} Be2 {[%emt 0:04:28]} 35. Ng5 {[%emt 0:01:39]} Bxd4 {[%emt 0:00:59]} 36. Nxf7+ {[%emt 0:00:14]} Ke7 {[%emt 0:00:06]} 37. Ng5 {[%emt 0:00:34]} Bxe3 {[%emt 0:00:09]} 38. fxe3 {[%emt 0:00:07]} b5 {[%emt 0:07:27]} 39. Ne4 {[%emt 0:00:47]} b4 {[%emt 0:00:36]} 40. Nd2 {[%emt 0:00:09]} Bd1 {[%emt 0:01:28]} 41. Kg3 {[%emt 0:00:11]} b3 {[%emt 0:00:29]} 42. Nc4 {[%emt 0:00:05]} Be2 {[%emt 0:01:37]} 43. Nb2 {[%emt 0:00:06]} Kd6 {[%emt 0:01:26]} 44. Kf2 {[%emt 0:00:06]} Bb5 {[%emt 0:00:05]} 45. e4 {[%emt 0:04:00]} Kc5 {[%emt 0:01:15]} 46. Ke3 {[%emt 0:01:36]} Kb4 {[%emt 0:00:10]} 47. Kd4 {[%emt 0:00:10]} Bf1 {[%emt 0:02:50]} 48. h4 {[%emt 0:05:40]} Ka3 {[%emt 0:01:20]} 49. Kc3 {[%emt 0:00:24]} Bxg2 {[%emt 0:00:14]} 50. e5 {[%emt 0:00:27]} Bd5 {[%emt 0:00:23]} 51. Nd3 {[%emt 0:00:23]} h6 {[%emt 0:00:41]} 52. Nb4 {[%emt 0:01:37]} Be4 {[%emt 0:03:13]} 53. e6 {[%emt 0:01:55]} b2 {[%emt 0:00:06]} 54. Kd4 {[%emt 0:40:59]} 0-1